[Event "Titled Tuesday Blitz November 08 Late 2022"]
[White "Kopacz, Grzegorz"]
[Black "Dilanyan, Grigor"]
[WhiteFideId "1109880"]
[BlackFideId "13303570"]
[WhiteElo "2037"]
[BlackElo "2229"]
[Result "0-1"]
[Round "01"]
[TimeControl "180+1"]
[Date "2022.11.09"]
[WhiteClock "0:00:14"]
[BlackClock "0:00:25"]

1. d4 {[%clk 0:02:59]}  Nf6 {[%clk 0:02:55]} 2. Nf3 {[%clk 0:02:59]}  g6 {[%clk 0:02:54]} 3. c4 {[%clk 0:02:58]}  Bg7 {[%clk 0:02:55]} 4. Nc3 {[%clk 0:02:59]}  O-O {[%clk 0:02:55]} 5. e4 {[%clk 0:02:59]}  d6 {[%clk 0:02:55]} 6. Be2 {[%clk 0:02:57]}  a6 {[%clk 0:02:52]} 7. h3 {[%clk 0:02:54]}  Nc6 {[%clk 0:02:53]} 8. Be3 {[%clk 0:02:53]}  Rb8 {[%clk 0:02:53]} 9. O-O {[%clk 0:02:52]}  b5 {[%clk 0:02:53]} 10. b3 {[%clk 0:02:39]}  b4 {[%clk 0:02:51]} 11. Nd5 {[%clk 0:02:35]}  Nxe4 {[%clk 0:02:51]} 12. Qc2 {[%clk 0:02:27]}  Nf6 {[%clk 0:02:44]} 13. Rad1 {[%clk 0:02:20]}  Nxd5 {[%clk 0:02:40]} 14. cxd5 {[%clk 0:02:19]}  Na7 {[%clk 0:02:40]} 15. Rc1 {[%clk 0:02:15]}  Nb5 {[%clk 0:02:31]} 16. Bxb5 {[%clk 0:02:14]}  Rxb5 {[%clk 0:02:32]} 17. Qxc7 {[%clk 0:02:12]}  Rxd5 {[%clk 0:02:32]} 18. Rc4 {[%clk 0:01:50]}  a5 {[%clk 0:02:17]} 19. Rfc1 {[%clk 0:01:48]}  Ba6 {[%clk 0:02:14]} 20. Qxd8 {[%clk 0:01:44]}  Rxd8 {[%clk 0:02:13]} 21. Rc7 {[%clk 0:01:45]}  Bf6 {[%clk 0:02:11]} 22. Ra7 {[%clk 0:01:44]}  Be2 {[%clk 0:02:11]} 23. Rcc7 {[%clk 0:01:16]}  Bxf3 {[%clk 0:02:05]} 24. gxf3 {[%clk 0:01:17]}  h5 {[%clk 0:02:04]} 25. Ra6 {[%clk 0:01:10]}  Rb8 {[%clk 0:02:03]} 26. Rca7 {[%clk 0:01:10]}  Rbb5 {[%clk 0:02:03]} 27. Ra8+ {[%clk 0:01:05]}  Kg7 {[%clk 0:02:02]} 28. Re8 {[%clk 0:00:59]}  Rf5 {[%clk 0:02:01]} 29. Raa8 {[%clk 0:00:59]}  Rxf3 {[%clk 0:01:50]} 30. Rg8+ {[%clk 0:00:54]}  Kh7 {[%clk 0:01:51]} 31. Rgf8 {[%clk 0:00:53]}  Bg7 {[%clk 0:01:45]} 32. Rfe8 {[%clk 0:00:52]}  e5 {[%clk 0:01:45]} 33. dxe5 {[%clk 0:00:50]}  dxe5 {[%clk 0:01:41]} 34. Ra7 {[%clk 0:00:48]}  Bh6 {[%clk 0:01:25]} 35. Bxh6 {[%clk 0:00:30]}  Kxh6 {[%clk 0:01:25]} 36. Rea8 {[%clk 0:00:30]}  Rxh3 {[%clk 0:01:15]} 37. Rxf7 {[%clk 0:00:30]}  e4 {[%clk 0:01:13]} 38. Kg2 {[%clk 0:00:30]}  Rc3 {[%clk 0:01:12]} 39. Ra6 {[%clk 0:00:30]}  h4 {[%clk 0:01:06]} 40. Rf8 {[%clk 0:00:29]}  Rg5+ {[%clk 0:00:58]} 41. Kf1 {[%clk 0:00:24]}  Kh5 {[%clk 0:00:56]} 42. Rf4 {[%clk 0:00:19]}  h3 {[%clk 0:00:54]} 43. Ra8 {[%clk 0:00:19]}  Rf5 {[%clk 0:00:52]} 44. Rh8+ {[%clk 0:00:17]}  Kg5 {[%clk 0:00:51]} 45. Rfh4 {[%clk 0:00:17]}  Rc2 {[%clk 0:00:42]} 46. Rxh3 {[%clk 0:00:17]}  Rfxf2+ {[%clk 0:00:42]} 47. Ke1 {[%clk 0:00:17]}  Rce2+ {[%clk 0:00:42]} 48. Kd1 {[%clk 0:00:17]}  Rxa2 {[%clk 0:00:42]} 49. Ke1 {[%clk 0:00:15]}  Rae2+ {[%clk 0:00:40]} 50. Kd1 {[%clk 0:00:15]}  Rb2 {[%clk 0:00:41]} 51. Ke1 {[%clk 0:00:15]}  Rfe2+ {[%clk 0:00:40]} 52. Kd1 {[%clk 0:00:15]}  Rg2 {[%clk 0:00:40]} 53. Kc1 {[%clk 0:00:14]}  Rbf2 {[%clk 0:00:30]} 54. Rh1 {[%clk 0:00:14]}  e3 {[%clk 0:00:25]} 55. Re8 {[%clk 0:00:14]}  Kf4 {[%clk 0:00:25]} 56. Rf8+ {[%clk 0:00:14]}  Ke4 {[%clk 0:00:25]} 57. Re8+ {[%clk 0:00:15]}  Kd3 {[%clk 0:00:24]} 58. Rd8+ {[%clk 0:00:14]}  Kc3 {[%clk 0:00:24]} 59. Rc8+ {[%clk 0:00:14]}  Kxb3 {[%clk 0:00:24]} 60. Rd8 {[%clk 0:00:14]}  Rc2+ {[%clk 0:00:24]} 61. Kb1 {[%clk 0:00:14]}  Rb2+ {[%clk 0:00:24]} 62. Kc1 {[%clk 0:00:14]}  Rgc2+ {[%clk 0:00:24]} 63. Kd1 {[%clk 0:00:14]}  Rb1# {[%clk 0:00:25]} 0-1


[Site "https://www.chess.com"]

[Event "Titled Tuesday Blitz November 08 Late 2022"]
[White "Kovacevic, Radmila"]
[Black "Tokhirjonova, Gulrukhbegim"]
[WhiteFideId "933171"]
[BlackFideId "14203626"]
[WhiteElo "2208"]
[BlackElo "2236"]
[Result "0-1"]
[Round "01"]
[TimeControl "180+1"]
[Date "2022.11.09"]
[WhiteClock "0:00:53"]
[BlackClock "0:01:43"]

1. e4 {[%clk 0:03:00]}  e5 {[%clk 0:02:59]} 2. Qh5 {[%clk 0:02:58]}  Nc6 {[%clk 0:02:56]} 3. Bc4 {[%clk 0:02:58]}  g6 {[%clk 0:02:56]} 4. Qf3 {[%clk 0:02:57]}  Qf6 {[%clk 0:02:54]} 5. c3 {[%clk 0:02:56]}  Bg7 {[%clk 0:02:54]} 6. Qd1 {[%clk 0:02:54]}  d6 {[%clk 0:02:54]} 7. h3 {[%clk 0:02:52]}  Nge7 {[%clk 0:02:53]} 8. Nf3 {[%clk 0:02:51]}  h6 {[%clk 0:02:53]} 9. Qb3 {[%clk 0:02:44]}  O-O {[%clk 0:02:52]} 10. Qa3 {[%clk 0:02:28]}  a6 {[%clk 0:02:45]} 11. d3 {[%clk 0:02:26]}  Kh7 {[%clk 0:02:42]} 12. Be3 {[%clk 0:02:20]}  Rd8 {[%clk 0:02:42]} 13. Nbd2 {[%clk 0:02:15]}  d5 {[%clk 0:02:35]} 14. Bb3 {[%clk 0:02:12]}  d4 {[%clk 0:02:31]} 15. cxd4 {[%clk 0:02:01]}  exd4 {[%clk 0:02:32]} 16. Bg5 {[%clk 0:01:52]}  hxg5 {[%clk 0:02:31]} 17. h4 {[%clk 0:01:52]}  gxh4 {[%clk 0:02:24]} 18. Rxh4+ {[%clk 0:01:46]}  Kg8 {[%clk 0:02:24]} 19. O-O-O {[%clk 0:01:45]}  Ne5 {[%clk 0:02:15]} 20. Nxe5 {[%clk 0:01:41]}  Qxe5 {[%clk 0:02:14]} 21. f4 {[%clk 0:01:30]}  Qd6 {[%clk 0:02:13]} 22. Qxd6 {[%clk 0:01:27]}  Rxd6 {[%clk 0:02:13]} 23. Nc4 {[%clk 0:01:25]}  Rd8 {[%clk 0:02:13]} 24. g4 {[%clk 0:01:24]}  b5 {[%clk 0:02:09]} 25. Na5 {[%clk 0:01:22]}  c5 {[%clk 0:02:07]} 26. Rdh1 {[%clk 0:01:17]}  Be6 {[%clk 0:02:01]} 27. f5 {[%clk 0:01:16]}  Bxb3 {[%clk 0:02:01]} 28. Nxb3 {[%clk 0:01:16]}  c4 {[%clk 0:01:58]} 29. Nd2 {[%clk 0:01:14]}  cxd3 {[%clk 0:01:56]} 30. Nf3 {[%clk 0:01:13]}  Rac8+ {[%clk 0:01:45]} 31. Kd2 {[%clk 0:01:13]}  Rc2+ {[%clk 0:01:45]} 32. Kxd3 {[%clk 0:01:13]}  Rf2 {[%clk 0:01:46]} 33. R1h3 {[%clk 0:01:12]}  Nc6 {[%clk 0:01:46]} 34. a3 {[%clk 0:00:58]}  Rxf3+ {[%clk 0:01:42]} 35. Rxf3 {[%clk 0:00:58]}  Ne5+ {[%clk 0:01:43]} 36. Ke2 {[%clk 0:00:58]}  d3+ {[%clk 0:01:43]} 37. Ke3 {[%clk 0:00:54]}  Nxf3 {[%clk 0:01:43]} 38. Kxf3 {[%clk 0:00:54]}  d2 {[%clk 0:01:43]} 39. Rh1 {[%clk 0:00:53]}  d1=Q+ {[%clk 0:01:43]} 40. Rxd1 {[%clk 0:00:53]}  Rxd1 {[%clk 0:01:43]} 0-1


[Site "https://www.chess.com"]

[Event "Titled Tuesday Blitz November 08 Late 2022"]
[White "Koziorowicz, Michal"]
[Black "Korkmaz, Necmettin"]
[WhiteFideId "21809194"]
[BlackFideId "6303285"]
[WhiteElo "2174"]
[BlackElo "2094"]
[Result "0-1"]
[Round "01"]
[TimeControl "180+1"]
[Date "2022.11.09"]
[WhiteClock "0:00:57"]
[BlackClock "0:00:17"]

1. e4 {[%clk 0:02:55]}  e5 {[%clk 0:02:55]} 2. Nf3 {[%clk 0:02:56]}  Nc6 {[%clk 0:02:55]} 3. Nc3 {[%clk 0:02:56]}  Nf6 {[%clk 0:02:54]} 4. Nxe5 {[%clk 0:02:56]}  Nxe5 {[%clk 0:02:40]} 5. d4 {[%clk 0:02:55]}  Ng6 {[%clk 0:02:39]} 6. e5 {[%clk 0:02:55]}  Ng8 {[%clk 0:02:38]} 7. f4 {[%clk 0:02:54]}  d5 {[%clk 0:02:08]} 8. Bd3 {[%clk 0:02:53]}  Nh6 {[%clk 0:01:57]} 9. O-O {[%clk 0:02:51]}  Nf5 {[%clk 0:01:33]} 10. Bxf5 {[%clk 0:02:46]}  Bxf5 {[%clk 0:01:32]} 11. g4 {[%clk 0:02:46]}  Be4 {[%clk 0:01:21]} 12. f5 {[%clk 0:02:45]}  Nh4 {[%clk 0:01:18]} 13. Qe2 {[%clk 0:02:25]}  h5 {[%clk 0:01:18]} 14. Nxe4 {[%clk 0:02:19]}  dxe4 {[%clk 0:01:16]} 15. Be3 {[%clk 0:02:15]}  hxg4 {[%clk 0:01:13]} 16. Qb5+ {[%clk 0:02:05]}  c6 {[%clk 0:01:11]} 17. Qxb7 {[%clk 0:02:04]}  Rc8 {[%clk 0:01:10]} 18. e6 {[%clk 0:02:01]}  Be7 {[%clk 0:01:02]} 19. f6 {[%clk 0:01:35]}  gxf6 {[%clk 0:00:58]} 20. Qb3 {[%clk 0:01:34]}  Nf3+ {[%clk 0:00:55]} 21. Rxf3 {[%clk 0:01:34]}  gxf3 {[%clk 0:00:55]} 22. exf7+ {[%clk 0:01:35]}  Kf8 {[%clk 0:00:51]} 23. Bf4 {[%clk 0:01:33]}  Qxd4+ {[%clk 0:00:45]} 24. Kh1 {[%clk 0:01:28]}  e3 {[%clk 0:00:31]} 25. Rg1 {[%clk 0:01:24]}  Qd5 {[%clk 0:00:30]} 26. c4 {[%clk 0:01:22]}  Qe4 {[%clk 0:00:25]} 27. Qxe3 {[%clk 0:01:18]}  Qxe3 {[%clk 0:00:23]} 28. Bxe3 {[%clk 0:01:19]}  Kxf7 {[%clk 0:00:23]} 29. Rg3 {[%clk 0:01:14]}  Bd6 {[%clk 0:00:21]} 30. Rxf3 {[%clk 0:01:14]}  Rxh2+ {[%clk 0:00:21]} 31. Kg1 {[%clk 0:01:15]}  Rg8+ {[%clk 0:00:21]} 32. Kf1 {[%clk 0:01:15]}  Be5 {[%clk 0:00:19]} 33. b4 {[%clk 0:01:10]}  Rxa2 {[%clk 0:00:19]} 34. b5 {[%clk 0:01:10]}  Rh8 {[%clk 0:00:18]} 35. Bf2 {[%clk 0:01:05]}  cxb5 {[%clk 0:00:18]} 36. cxb5 {[%clk 0:01:05]}  Rh1+ {[%clk 0:00:18]} 37. Kg2 {[%clk 0:01:04]}  Rh2+ {[%clk 0:00:18]} 38. Kg1 {[%clk 0:01:04]}  Rhxf2 {[%clk 0:00:19]} 39. Rh3 {[%clk 0:00:57]}  Rfb2 {[%clk 0:00:17]} 0-1


[Site "https://www.chess.com"]

[Event "Titled Tuesday Blitz November 08 Late 2022"]
[White "Krallis, Christos"]
[Black "Capp, Stephen"]
[WhiteFideId "4298896"]
[BlackFideId "2027089"]
[WhiteElo "2243"]
[BlackElo "2150"]
[Result "0-1"]
[Round "01"]
[TimeControl "180+1"]
[Date "2022.11.09"]
[WhiteClock "0:01:39"]
[BlackClock "0:02:27"]

1. d4 {[%clk 0:02:58]}  Nf6 {[%clk 0:02:59]} 2. c4 {[%clk 0:02:58]}  e6 {[%clk 0:02:59]} 3. Nf3 {[%clk 0:02:58]}  Bb4+ {[%clk 0:02:57]} 4. Nbd2 {[%clk 0:02:57]}  b6 {[%clk 0:02:56]} 5. g3 {[%clk 0:02:57]}  Bb7 {[%clk 0:02:56]} 6. Bg2 {[%clk 0:02:57]}  O-O {[%clk 0:02:53]} 7. O-O {[%clk 0:02:58]}  Bxd2 {[%clk 0:02:51]} 8. Qxd2 {[%clk 0:02:58]}  Ne4 {[%clk 0:02:50]} 9. Qf4 {[%clk 0:02:53]}  f5 {[%clk 0:02:49]} 10. b3 {[%clk 0:02:51]}  d6 {[%clk 0:02:49]} 11. h4 {[%clk 0:02:51]}  Nd7 {[%clk 0:02:49]} 12. Bb2 {[%clk 0:02:51]}  Ndf6 {[%clk 0:02:48]} 13. Ng5 {[%clk 0:02:49]}  Qe7 {[%clk 0:02:38]} 14. Nxe4 {[%clk 0:02:35]}  Bxe4 {[%clk 0:02:32]} 15. f3 {[%clk 0:02:25]}  Bb7 {[%clk 0:02:30]} 16. Qg5 {[%clk 0:02:05]}  h6 {[%clk 0:02:28]} 17. Qg6 {[%clk 0:02:02]}  Bc6 {[%clk 0:02:28]} 18. g4 {[%clk 0:01:39]}  Be8 {[%clk 0:02:27]} 0-1


[Site "https://www.chess.com"]

[Event "Titled Tuesday Blitz November 08 Late 2022"]
[White "Kumala, Aleksander"]
[Black "Joubert, Dantelle"]
[WhiteFideId "1141880"]
[BlackFideId "14310813"]
[WhiteElo "2269"]
[BlackElo "1507"]
[Result "1-0"]
[Round "01"]
[TimeControl "180+1"]
[Date "2022.11.09"]
[WhiteClock "0:01:25"]
[BlackClock "0:00:12"]

1. d4 {[%clk 0:02:50]}  d5 {[%clk 0:02:13]} 2. Bg5 {[%clk 0:02:44]}  c6 {[%clk 0:02:10]} 3. e3 {[%clk 0:02:43]}  h6 {[%clk 0:02:01]} 4. Bh4 {[%clk 0:02:43]}  Qb6 {[%clk 0:02:00]} 5. Nd2 {[%clk 0:02:42]}  Qxb2 {[%clk 0:01:51]} 6. Bd3 {[%clk 0:02:41]}  e6 {[%clk 0:01:43]} 7. Ngf3 {[%clk 0:02:41]}  Qb6 {[%clk 0:01:28]} 8. O-O {[%clk 0:02:39]}  Qc7 {[%clk 0:01:20]} 9. c4 {[%clk 0:02:39]}  Be7 {[%clk 0:01:13]} 10. Bg3 {[%clk 0:02:39]}  Bd6 {[%clk 0:01:12]} 11. Ne5 {[%clk 0:02:37]}  Qd8 {[%clk 0:01:02]} 12. Qh5 {[%clk 0:02:18]}  Bxe5 {[%clk 0:01:00]} 13. Bxe5 {[%clk 0:02:17]}  Nf6 {[%clk 0:00:59]} 14. Qh4 {[%clk 0:02:13]}  Nbd7 {[%clk 0:00:52]} 15. Bd6 {[%clk 0:02:13]}  dxc4 {[%clk 0:00:48]} 16. Nxc4 {[%clk 0:02:12]}  Nb6 {[%clk 0:00:47]} 17. Ba3 {[%clk 0:01:57]}  Nxc4 {[%clk 0:00:43]} 18. Bxc4 {[%clk 0:01:58]}  b6 {[%clk 0:00:25]} 19. Qg3 {[%clk 0:01:56]}  g5 {[%clk 0:00:16]} 20. Rfd1 {[%clk 0:01:39]}  Bb7 {[%clk 0:00:16]} 21. Rac1 {[%clk 0:01:33]}  Qb8 {[%clk 0:00:12]} 22. Bd6 {[%clk 0:01:30]}  Qd8 {[%clk 0:00:12]} 23. Bc7 {[%clk 0:01:26]}  Rg8 {[%clk 0:00:12]} 24. Bxd8 {[%clk 0:01:25]} 1-0


[Site "https://www.chess.com"]

[Event "Titled Tuesday Blitz November 08 Late 2022"]
[White "Ladan, Nicholas"]
[Black "Pap, Gyula"]
[WhiteFideId "30918855"]
[BlackFideId "725323"]
[WhiteElo "2167"]
[BlackElo "2519"]
[Result "0-1"]
[Round "01"]
[TimeControl "180+1"]
[Date "2022.11.08"]
[WhiteClock "0:00:01"]
[BlackClock "0:01:28"]

1. d4 {[%clk 0:02:58]}  e6 {[%clk 0:02:59]} 2. c4 {[%clk 0:02:57]}  Bb4+ {[%clk 0:02:59]} 3. Bd2 {[%clk 0:02:57]}  Bxd2+ {[%clk 0:02:57]} 4. Nxd2 {[%clk 0:02:58]}  Nf6 {[%clk 0:02:57]} 5. g3 {[%clk 0:02:56]}  d5 {[%clk 0:02:57]} 6. Bg2 {[%clk 0:02:56]}  O-O {[%clk 0:02:57]} 7. Ngf3 {[%clk 0:02:55]}  c6 {[%clk 0:02:47]} 8. O-O {[%clk 0:02:54]}  b6 {[%clk 0:02:47]} 9. Qc2 {[%clk 0:02:52]}  Bb7 {[%clk 0:02:46]} 10. e4 {[%clk 0:02:53]}  Nbd7 {[%clk 0:02:21]} 11. e5 {[%clk 0:02:50]}  Ne8 {[%clk 0:02:21]} 12. cxd5 {[%clk 0:02:50]}  cxd5 {[%clk 0:02:21]} 13. h4 {[%clk 0:02:42]}  h6 {[%clk 0:02:20]} 14. Rfc1 {[%clk 0:02:40]}  a5 {[%clk 0:02:10]} 15. Bf1 {[%clk 0:02:36]}  Ba6 {[%clk 0:02:08]} 16. Bxa6 {[%clk 0:02:27]}  Rxa6 {[%clk 0:02:09]} 17. a4 {[%clk 0:02:16]}  Ra7 {[%clk 0:02:08]} 18. Ra3 {[%clk 0:02:03]}  Nb8 {[%clk 0:02:06]} 19. Rc3 {[%clk 0:01:59]}  Na6 {[%clk 0:02:07]} 20. Rc8 {[%clk 0:01:58]}  Qd7 {[%clk 0:01:58]} 21. Qc6 {[%clk 0:01:54]}  Qxc6 {[%clk 0:01:56]} 22. R1xc6 {[%clk 0:01:53]}  Rb7 {[%clk 0:01:56]} 23. Nb1 {[%clk 0:01:17]}  Nec7 {[%clk 0:01:54]} 24. Rxf8+ {[%clk 0:01:15]}  Kxf8 {[%clk 0:01:54]} 25. Nc3 {[%clk 0:01:14]}  Nb4 {[%clk 0:01:49]} 26. Rd6 {[%clk 0:01:10]}  Ke7 {[%clk 0:01:49]} 27. Nb5 {[%clk 0:00:46]}  Ne8 {[%clk 0:01:49]} 28. g4 {[%clk 0:00:41]}  f6 {[%clk 0:01:48]} 29. g5 {[%clk 0:00:39]}  Nxd6 {[%clk 0:01:48]} 30. Nxd6 {[%clk 0:00:16]}  Rc7 {[%clk 0:01:48]} 31. Nb5 {[%clk 0:00:16]}  Rc1+ {[%clk 0:01:42]} 32. Kg2 {[%clk 0:00:15]}  hxg5 {[%clk 0:01:43]} 33. exf6+ {[%clk 0:00:13]}  gxf6 {[%clk 0:01:43]} 34. h5 {[%clk 0:00:12]}  Nd3 {[%clk 0:01:40]} 35. h6 {[%clk 0:00:11]}  Kf7 {[%clk 0:01:35]} 36. Nd6+ {[%clk 0:00:01]}  Kg6 {[%clk 0:01:34]} 37. Ne8 {[%clk 0:00:01]}  g4 {[%clk 0:01:28]} 0-1


[Site "https://www.chess.com"]

[Event "Titled Tuesday Blitz November 08 Late 2022"]
[White "Leitao, Rafael"]
[Black "Bochnicka, Vladimir"]
[WhiteFideId "2101246"]
[BlackFideId "14943450"]
[WhiteElo "2609"]
[BlackElo "2239"]
[Result "1/2-1/2"]
[Round "01"]
[TimeControl "180+1"]
[Date "2022.11.09"]
[WhiteClock "0:00:13"]
[BlackClock "0:00:18"]

1. c4 {[%clk 0:02:59]}  e5 {[%clk 0:02:58]} 2. Nc3 {[%clk 0:02:59]}  Bb4 {[%clk 0:02:57]} 3. Nd5 {[%clk 0:02:57]}  Be7 {[%clk 0:02:57]} 4. d4 {[%clk 0:02:52]}  exd4 {[%clk 0:02:51]} 5. Qxd4 {[%clk 0:02:52]}  Nf6 {[%clk 0:02:50]} 6. Nxe7 {[%clk 0:02:40]}  Qxe7 {[%clk 0:02:49]} 7. Bg5 {[%clk 0:02:38]}  Nc6 {[%clk 0:02:49]} 8. Bxf6 {[%clk 0:02:29]}  gxf6 {[%clk 0:02:29]} 9. Qc3 {[%clk 0:02:25]}  d6 {[%clk 0:02:29]} 10. Nf3 {[%clk 0:02:25]}  Be6 {[%clk 0:02:29]} 11. e3 {[%clk 0:02:22]}  Rg8 {[%clk 0:02:28]} 12. O-O-O {[%clk 0:02:18]}  O-O-O {[%clk 0:02:27]} 13. Nd4 {[%clk 0:02:10]}  Nxd4 {[%clk 0:02:16]} 14. Qxd4 {[%clk 0:01:51]}  Kb8 {[%clk 0:02:16]} 15. g3 {[%clk 0:01:50]}  Bg4 {[%clk 0:02:06]} 16. Rd2 {[%clk 0:01:42]}  Bf3 {[%clk 0:02:05]} 17. Rg1 {[%clk 0:01:42]}  Rg4 {[%clk 0:01:59]} 18. Qc3 {[%clk 0:01:38]}  Qe5 {[%clk 0:01:38]} 19. Qc2 {[%clk 0:01:26]}  h5 {[%clk 0:01:32]} 20. h3 {[%clk 0:01:15]}  Rg6 {[%clk 0:01:26]} 21. Bd3 {[%clk 0:01:07]}  Rgg8 {[%clk 0:01:26]} 22. Bf5 {[%clk 0:01:01]}  d5 {[%clk 0:01:23]} 23. c5 {[%clk 0:01:01]}  d4 {[%clk 0:01:21]} 24. e4 {[%clk 0:01:01]}  d3 {[%clk 0:01:15]} 25. Rxd3 {[%clk 0:00:44]}  Rxd3 {[%clk 0:01:14]} 26. Qxd3 {[%clk 0:00:44]}  Qxc5+ {[%clk 0:01:15]} 27. Qc2 {[%clk 0:00:45]}  Qd4 {[%clk 0:01:00]} 28. Kb1 {[%clk 0:00:44]}  h4 {[%clk 0:00:57]} 29. g4 {[%clk 0:00:44]}  Rd8 {[%clk 0:00:53]} 30. Rc1 {[%clk 0:00:44]}  c6 {[%clk 0:00:51]} 31. a3 {[%clk 0:00:38]}  Bg2 {[%clk 0:00:51]} 32. f4 {[%clk 0:00:26]}  Qd3 {[%clk 0:00:46]} 33. e5 {[%clk 0:00:22]}  Qxc2+ {[%clk 0:00:46]} 34. Rxc2 {[%clk 0:00:22]}  Rd1+ {[%clk 0:00:36]} 35. Ka2 {[%clk 0:00:22]}  Bd5+ {[%clk 0:00:31]} 36. b3 {[%clk 0:00:22]}  fxe5 {[%clk 0:00:31]} 37. fxe5 {[%clk 0:00:22]}  Re1 {[%clk 0:00:31]} 38. e6 {[%clk 0:00:19]}  fxe6 {[%clk 0:00:31]} 39. Bh7 {[%clk 0:00:19]}  Re3 {[%clk 0:00:31]} 40. Rh2 {[%clk 0:00:16]}  Rxb3 {[%clk 0:00:30]} 41. Ka1 {[%clk 0:00:16]}  Rxa3+ {[%clk 0:00:30]} 42. Kb2 {[%clk 0:00:17]}  Rg3 {[%clk 0:00:30]} 43. Bc2 {[%clk 0:00:12]}  Rg2 {[%clk 0:00:30]} 44. Rxg2 {[%clk 0:00:12]}  Bxg2 {[%clk 0:00:30]} 45. g5 {[%clk 0:00:13]}  e5 {[%clk 0:00:25]} 46. g6 {[%clk 0:00:13]}  Bd5 {[%clk 0:00:19]} 47. g7 {[%clk 0:00:13]}  Bg8 {[%clk 0:00:17]} 48. Bb3 {[%clk 0:00:13]}  Bh7 {[%clk 0:00:16]} 49. Bc2 {[%clk 0:00:13]}  Bg8 {[%clk 0:00:16]} 50. Bb3 {[%clk 0:00:12]}  Bh7 {[%clk 0:00:16]} 51. Bc2 {[%clk 0:00:12]}  e4 {[%clk 0:00:16]} 52. Bxe4 {[%clk 0:00:12]}  Bg8 {[%clk 0:00:17]} 53. Bc2 {[%clk 0:00:12]}  Kc7 {[%clk 0:00:17]} 54. Bb3 {[%clk 0:00:12]}  Bh7 {[%clk 0:00:16]} 55. Bc2 {[%clk 0:00:12]}  Bg8 {[%clk 0:00:17]} 56. Bb3 {[%clk 0:00:12]}  Bh7 {[%clk 0:00:17]} 57. Bc2 {[%clk 0:00:13]}  Bg8 {[%clk 0:00:18]} 1/2-1/2


[Site "https://www.chess.com"]

[Event "Titled Tuesday Blitz November 08 Late 2022"]
[White "Levine, David"]
[Black "Martic, Ivan"]
[WhiteFideId "2011611"]
[BlackFideId "929301"]
[WhiteElo "2169"]
[BlackElo "2355"]
[Result "0-1"]
[Round "01"]
[TimeControl "180+1"]
[Date "2022.11.09"]
[WhiteClock "0:00:01"]
[BlackClock "0:00:41"]

1. d4 {[%clk 0:03:00]}  Nf6 {[%clk 0:02:59]} 2. c4 {[%clk 0:03:00]}  g6 {[%clk 0:02:59]} 3. g3 {[%clk 0:03:00]}  Bg7 {[%clk 0:02:58]} 4. Bg2 {[%clk 0:03:00]}  d5 {[%clk 0:02:58]} 5. cxd5 {[%clk 0:02:58]}  Nxd5 {[%clk 0:02:59]} 6. Nf3 {[%clk 0:02:56]}  O-O {[%clk 0:02:58]} 7. O-O {[%clk 0:02:56]}  Nb6 {[%clk 0:02:58]} 8. e3 {[%clk 0:02:55]}  Nc6 {[%clk 0:02:57]} 9. Nc3 {[%clk 0:02:52]}  Re8 {[%clk 0:02:57]} 10. b3 {[%clk 0:02:42]}  a5 {[%clk 0:02:51]} 11. Bb2 {[%clk 0:02:40]}  Bf5 {[%clk 0:02:45]} 12. e4 {[%clk 0:02:36]}  Bg4 {[%clk 0:02:44]} 13. d5 {[%clk 0:02:32]}  Ne5 {[%clk 0:02:43]} 14. Rc1 {[%clk 0:02:18]}  a4 {[%clk 0:02:43]} 15. Re1 {[%clk 0:02:00]}  axb3 {[%clk 0:02:40]} 16. axb3 {[%clk 0:02:00]}  e6 {[%clk 0:02:32]} 17. dxe6 {[%clk 0:01:54]}  Nd3 {[%clk 0:02:10]} 18. exf7+ {[%clk 0:01:51]}  Kxf7 {[%clk 0:02:11]} 19. Ng5+ {[%clk 0:01:39]}  Qxg5 {[%clk 0:01:52]} 20. Qxd3 {[%clk 0:01:38]}  Kg8 {[%clk 0:01:53]} 21. h3 {[%clk 0:01:28]}  Be6 {[%clk 0:01:51]} 22. e5 {[%clk 0:01:06]}  Red8 {[%clk 0:01:44]} 23. Qb5 {[%clk 0:01:01]}  Rd2 {[%clk 0:01:38]} 24. Rb1 {[%clk 0:00:49]}  Qf5 {[%clk 0:01:24]} 25. Ne4 {[%clk 0:00:37]}  Rd5 {[%clk 0:01:23]} 26. Qe2 {[%clk 0:00:27]}  Ra2 {[%clk 0:01:17]} 27. Nc3 {[%clk 0:00:23]}  Rxb2 {[%clk 0:01:17]} 28. Rxb2 {[%clk 0:00:21]}  Rxe5 {[%clk 0:01:16]} 29. Qf1 {[%clk 0:00:19]}  c6 {[%clk 0:01:08]} 30. Rbe2 {[%clk 0:00:16]}  Rxe2 {[%clk 0:01:07]} 31. Qxe2 {[%clk 0:00:16]}  Bf7 {[%clk 0:01:05]} 32. Ne4 {[%clk 0:00:15]}  Bxb3 {[%clk 0:01:02]} 33. Nd6 {[%clk 0:00:13]}  Qf8 {[%clk 0:01:02]} 34. Qd3 {[%clk 0:00:11]}  Bd5 {[%clk 0:00:55]} 35. Re8 {[%clk 0:00:10]}  Qxe8 {[%clk 0:00:47]} 36. Nxe8 {[%clk 0:00:09]}  Be5 {[%clk 0:00:47]} 37. Bxd5+ {[%clk 0:00:07]}  Nxd5 {[%clk 0:00:48]} 38. Qf3 {[%clk 0:00:06]}  b5 {[%clk 0:00:45]} 39. h4 {[%clk 0:00:06]}  b4 {[%clk 0:00:45]} 40. h5 {[%clk 0:00:06]}  gxh5 {[%clk 0:00:43]} 41. Qxh5 {[%clk 0:00:04]}  Bc3 {[%clk 0:00:41]} 42. Qg5+ {[%clk 0:00:03]}  Kf7 {[%clk 0:00:41]} 43. Nd6+ {[%clk 0:00:03]}  Ke6 {[%clk 0:00:42]} 44. Nc4 {[%clk 0:00:03]}  b3 {[%clk 0:00:42]} 45. Qg4+ {[%clk 0:00:01]}  Ke7 {[%clk 0:00:41]} 0-1


[Site "https://www.chess.com"]